[Event "Olomouc Chess Summer IM-B 2024"]
[Site "Olomouc"]
[Date "2024.08.14"]
[Round "6.12"]
[White "Dukic, Zachary"]
[Black "Ihnat, Marek"]
[Result "1-0"]
[ECO "C63"]
[WhiteElo "2244"]
[BlackElo "2097"]
[Annotator "RC"]
[PlyCount "63"]
[EventDate "2024.08.10"]
[EventType "tourn"]
[EventCountry "CZE"]
[SourceTitle "playchess.com"]
[Source "ChessBase"]
[SourceQuality "1"]
[TimeControl "40/5400+30:1800+30"]

1. e4 {[%emt 0:00:03]} e5 {[%emt 0:00:07]} 2. Nf3 {[%emt 0:00:05]} Nc6 {[%emt 0:00:05]} 3. Bb5 {[%emt 0:00:34]} f5 {[%emt 0:00:08]} 4. d3 {[%emt 0:00:07]} fxe4 {[%emt 0:00:05]} 5. dxe4 {[%emt 0:00:05]} Nf6 {[%emt 0:00:07]} 6. O-O {[%emt 0:00:08]} Bc5 {[%emt 0:00:16]} 7. Qd3 {[%emt 0:00:16]} d6 {[%emt 0:01:45]} 8. Qc4 {[%emt 0:00:44]} a6 {[%emt 0:13:38]} 9. Bxc6+ {[%emt 0:00:28]} bxc6 {[%emt 0:00:07]} 10. Nxe5 {[%emt 0:03:07]} Qe7 {[%emt 0:02:45]} 11. Nd3 {[%emt 0:09:40]} Be6 {[%emt 0:08:14]} 12. Qa4 {[%emt 0:00:23]} O-O {[%emt 0:01:22]} 13. Nxc5 {[%emt 0:00:34]} dxc5 {[%emt 0:00:08]} 14. Bg5 {[%emt 0:12:19]} h6 {[%emt 0:08:18]} 15. Bxf6 {[%emt 0:13:30]} Rxf6 {[%emt 0:03:41]} 16. Nd2 {[%emt 0:01:05]} Rd8 {[%emt 0:06:34]} 17. Qa5 {[%emt 0:11:03]} Qd7 {[%emt 0:10:57]} 18. Nb3 {[%emt 0:04:26]} Bh3 {[%emt 0:04:16]} 19. f3 {[%emt 0:02:33]} Rg6 {[%emt 0:09:18]} 20. Rf2 {[%emt 0:00:12]} c4 {[%emt 0:01:41]} 21. Nc5 {[%emt 0:00:36]} Qd1+ {[%emt 0:04:29]} 22. Qe1 {[%emt 0:00:08]} Qd4 {[%emt 0:00:04]} 23. Kh1 {[%emt 0:00:42]} Qxc5 {[%emt 0:05:04]} 24. gxh3 {[%emt 0:00:08]} Qh5 {[%emt 0:03:52]} 25. Qf1 {[%emt 0:06:44]} Kh8 {[%emt 0:04:26]} 26. Qxc4 {[%emt 0:00:46]} Qxh3 {[%emt 0:00:14]} 27. Qxa6 {[%emt 0:00:27]} Rd2 {[%emt 0:01:41]} 28. Qf1 {[%emt 0:00:39]} Qd7 {[%emt 0:00:22]} 29. Re1 {[%emt 0:03:53]} Qd4 {[%emt 0:02:46]} 30. Rxd2 {[%emt 0:00:28]} Qxd2 {[%emt 0:00:05]} 31. Qe2 {[%emt 0:00:09]} Rg2 {[%emt 0:02:39]} 32. Kxg2 {[%emt 0:00:52]} 1-0

[Event "Olomouc Chess Summer IM-B 2024"]
[Site "Olomouc"]
[Date "2024.08.14"]
[Round "6.13"]
[White "Zavurka, Roman"]
[Black "Leitgeb, Julian"]
[Result "1/2-1/2"]
[ECO "A48"]
[WhiteElo "2191"]
[BlackElo "2313"]
[Annotator "RC"]
[PlyCount "107"]
[EventDate "2024.08.10"]
[EventType "tourn"]
[EventCountry "CZE"]
[SourceTitle "playchess.com"]
[Source "ChessBase"]
[SourceQuality "1"]
[TimeControl "40/5400+30:1800+30"]

1. d4 {[%emt 0:00:04]} Nf6 {[%emt 0:00:17]} 2. Nf3 {[%emt 0:00:07]} g6 {[%emt 0:00:08]} 3. Bf4 {[%emt 0:00:07]} Bg7 {[%emt 0:00:05]} 4. e3 {[%emt 0:00:06]} O-O {[%emt 0:00:26]} 5. Be2 {[%emt 0:00:06]} d6 {[%emt 0:00:25]} 6. h3 {[%emt 0:00:07]} c5 {[%emt 0:00:17]} 7. c3 {[%emt 0:00:07]} cxd4 {[%emt 0:00:24]} 8. exd4 {[%emt 0:00:09]} Qb6 {[%emt 0:00:16]} 9. Qb3 {[%emt 0:00:18]} Be6 {[%emt 0:00:28]} 10. Qxb6 {[%emt 0:00:10]} axb6 {[%emt 0:00:02]} 11. a3 {[%emt 0:00:15]} Nd5 {[%emt 0:00:10]} 12. Bd2 {[%emt 0:03:19]} Nc6 {[%emt 0:07:29]} 13. Ng5 {[%emt 0:21:52]} Bf5 {[%emt 0:13:57]} 14. Bc4 {[%emt 0:02:48]} e6 {[%emt 0:10:59]} 15. g4 {[%emt 0:17:16]} Bc2 {[%emt 0:02:39]} 16. Bxd5 {[%emt 0:01:37]} exd5 {[%emt 0:00:10]} 17. Be3 {[%emt 0:01:50]} Na5 {[%emt 0:07:14]} 18. Nd2 {[%emt 0:01:24]} Nc4 {[%emt 0:02:59]} 19. Nxc4 {[%emt 0:01:20]} dxc4 {[%emt 0:01:05]} 20. Kd2 {[%emt 0:01:17]} Bd3 {[%emt 0:01:45]} 21. Rhe1 {[%emt 0:06:32]} h6 {[%emt 0:04:30]} 22. Nf3 {[%emt 0:03:43]} f5 {[%emt 0:01:53]} 23. gxf5 {[%emt 0:00:46]} Rxf5 {[%emt 0:00:14]} 24. Nh4 {[%emt 0:00:31]} Rb5 {[%emt 0:11:24]} 25. b4 {[%emt 0:00:20]} Rh5 {[%emt 0:00:56]} 26. Ng2 {[%emt 0:00:59]} g5 {[%emt 0:02:13]} 27. h4 {[%emt 0:05:13]} Be4 {[%emt 0:05:55]} 28. hxg5 {[%emt 0:01:00]} hxg5 {[%emt 0:04:08]} 29. Rg1 {[%emt 0:02:06]} Kf7 {[%emt 0:00:55]} 30. a4 {[%emt 0:03:49]} Bf6 {[%emt 0:03:01]} 31. Ne1 {[%emt 0:00:30]} Bd8 {[%emt 0:11:11]} 32. Nc2 {[%emt 0:00:40]} Ke6 {[%emt 0:01:59]} 33. Na3 {[%emt 0:02:45]} d5 {[%emt 0:04:37]} 34. Nb5 {[%emt 0:00:35]} Kd7 {[%emt 0:00:16]} 35. Na3 {[%emt 0:04:01]} Bf6 {[%emt 0:01:42]} 36. Nc2 {[%emt 0:00:35]} Ke6 {[%emt 0:01:29]} 37. a5 {[%emt 0:01:55]} bxa5 {[%emt 0:00:00]} 38. Rxa5 {[%emt 0:00:39]} Rxa5 {[%emt 0:00:11]} 39. bxa5 {[%emt 0:00:11]} Bd8 {[%emt 0:01:28]} 40. Ra1 {[%emt 0:01:11]} Rh1 {[%emt 0:00:35]} 41. Rxh1 {[%emt 0:33:49]} Bxh1 {[%emt 0:30:02]} 42. Nb4 {[%emt 0:00:11]} g4 {[%emt 0:00:00]} 43. a6 {[%emt 0:00:00]} bxa6 {[%emt 0:00:00]} 44. Nxa6 {[%emt 0:00:00]} Kf5 {[%emt 0:00:00]} 45. Nc5 {[%emt 0:00:00]} Bc7 {[%emt 0:00:00]} 46. Ke2 {[%emt 0:00:00]} Bf3+ {[%emt 0:00:00]} 47. Kd2 {[%emt 0:00:00]} g3 {[%emt 0:00:00]} 48. fxg3 {[%emt 0:00:00]} Bxg3 {[%emt 0:00:00]} 49. Nd7 {[%emt 0:00:00]} Ke6 {[%emt 0:00:00]} 50. Ne5 {[%emt 0:00:00]} Be4 {[%emt 0:00:00]} 51. Bh6 {[%emt 0:00:00]} Kf5 {[%emt 0:00:00]} 52. Be3 {[%emt 0:00:00]} Bxe5 {[%emt 0:00:00]} 53. dxe5 {[%emt 0:00:00]} Kxe5 {[%emt 0:00:00]} 54. Bd4+ {[%emt 0:00:00]} 1/2-1/2

[Event "Olomouc Chess Summer IM-B 2024"]
[Site "Olomouc"]
[Date "2024.08.14"]
[Round "6.14"]
[White "Biolek, Richard Jr."]
[Black "Plischki, Sebastian"]
[Result "1/2-1/2"]
[ECO "B42"]
[WhiteElo "2417"]
[BlackElo "2325"]
[Annotator "RC"]
[PlyCount "27"]
[EventDate "2024.08.10"]
[EventType "tourn"]
[EventCountry "CZE"]
[SourceTitle "playchess.com"]
[Source "ChessBase"]
[SourceQuality "1"]
[TimeControl "40/5400+30:1800+30"]

1. e4 {[%emt 0:00:05]} c5 {[%emt 0:00:11]} 2. Nf3 {[%emt 0:00:09]} e6 {[%emt 0:00:31]} 3. d4 {[%emt 0:00:07]} cxd4 {[%emt 0:00:03]} 4. Nxd4 {[%emt 0:00:04]} a6 {[%emt 0:00:20]} 5. Bd3 {[%emt 0:00:53]} Bc5 {[%emt 0:00:35]} 6. Nb3 {[%emt 0:00:17]} Ba7 {[%emt 0:00:05]} 7. O-O {[%emt 0:01:39]} Nc6 {[%emt 0:00:39]} 8. Qe2 {[%emt 0:00:40]} d6 {[%emt 0:01:41]} 9. Be3 {[%emt 0:00:18]} Nf6 {[%emt 0:00:45]} 10. a4 {[%emt 0:01:24]} Bxe3 {[%emt 0:01:33]} 11. Qxe3 {[%emt 0:00:04]} O-O {[%emt 0:00:08]} 12. Nc3 {[%emt 0:01:50]} e5 {[%emt 0:01:16]} 13. Bc4 {[%emt 0:02:07]} Qc7 {[%emt 0:02:44]} 14. Rfc1 {[%emt 0:04:14]} 1/2-1/2

[Event "Olomouc Chess Summer IM-B 2024"]
[Site "Olomouc"]
[Date "2024.08.14"]
[Round "6.15"]
[White "Schernthaner, David"]
[Black "Delgerdalai, Bayarjavkhlan"]
[Result "1-0"]
[ECO "C90"]
[WhiteElo "2331"]
[BlackElo "2278"]
[Annotator "RC"]
[PlyCount "67"]
[EventDate "2024.08.10"]
[EventType "tourn"]
[EventCountry "CZE"]
[SourceTitle "playchess.com"]
[Source "ChessBase"]
[SourceQuality "1"]
[TimeControl "40/5400+30:1800+30"]

1. e4 {[%emt 0:00:02]} e5 {[%emt 0:00:11]} 2. Nf3 {[%emt 0:00:22]} Nc6 {[%emt 0:00:05]} 3. Bb5 {[%emt 0:00:04]} a6 {[%emt 0:00:05]} 4. Ba4 {[%emt 0:00:04]} Nf6 {[%emt 0:00:06]} 5. O-O {[%emt 0:00:06]} Be7 {[%emt 0:00:18]} 6. Re1 {[%emt 0:00:16]} b5 {[%emt 0:00:09]} 7. Bb3 {[%emt 0:00:05]} O-O {[%emt 0:00:06]} 8. a4 {[%emt 0:01:46]} b4 {[%emt 0:00:07]} 9. a5 {[%emt 0:01:17]} d6 {[%emt 0:00:11]} 10. c3 {[%emt 0:00:44]} Rb8 {[%emt 0:00:29]} 11. Bc4 {[%emt 0:01:19]} bxc3 {[%emt 0:10:58]} 12. dxc3 {[%emt 0:04:03]} Bb7 {[%emt 0:16:18]} 13. Nbd2 {[%emt 0:15:53]} g6 {[%emt 0:07:05]} 14. Nf1 {[%emt 0:05:56]} Kg7 {[%emt 0:03:28]} 15. Ng3 {[%emt 0:01:27]} Qc8 {[%emt 0:06:54]} 16. h3 {[%emt 0:12:13]} Nd8 {[%emt 0:06:03]} 17. Nh2 {[%emt 0:02:15]} Ne6 {[%emt 0:14:31]} 18. Ng4 {[%emt 0:04:01]} Ng8 {[%emt 0:01:08]} 19. Ne3 {[%emt 0:03:19]} Nf4 {[%emt 0:05:36]} 20. h4 {[%emt 0:04:50]} Nh6 {[%emt 0:08:32]} 21. h5 {[%emt 0:02:26]} f5 {[%emt 0:08:31]} 22. hxg6 {[%emt 0:01:15]} hxg6 {[%emt 0:03:15]} 23. exf5 {[%emt 0:01:31]} gxf5 {[%emt 0:06:54]} 24. Nexf5+ {[%emt 0:11:13]} Nxf5 {[%emt 0:00:45]} 25. Bxf4 {[%emt 0:00:07]} Nh4 {[%emt 0:00:40]} 26. Rxe5 {[%emt 0:04:19]} Nf3+ {[%emt 0:00:31]} 27. gxf3 {[%emt 0:00:52]} dxe5 {[%emt 0:00:03]} 28. Bxe5+ {[%emt 0:00:07]} Bf6 {[%emt 0:00:56]} 29. Nh5+ {[%emt 0:02:09]} Kh6 {[%emt 0:00:29]} 30. Nxf6 {[%emt 0:00:14]} Rxf6 {[%emt 0:00:19]} 31. Bxf6 {[%emt 0:00:49]} Qf5 {[%emt 0:00:27]} 32. Qd2+ {[%emt 0:01:49]} Kh7 {[%emt 0:00:25]} 33. Bd3 {[%emt 0:01:41]} Rg8+ {[%emt 0:00:14]} 34. Kf1 {[%emt 0:00:42]} 1-0

[Event "Olomouc Chess Summer IM-B 2024"]
[Site "Olomouc"]
[Date "2024.08.15"]
[Round "7.11"]
[White "Plischki, Sebastian"]
[Black "Jurek, Josef"]
[Result "1/2-1/2"]
[ECO "A34"]
[WhiteElo "2325"]
[BlackElo "2191"]
[Annotator "RC"]
[PlyCount "115"]
[EventDate "2024.08.10"]
[EventType "tourn"]
[EventCountry "CZE"]
[SourceTitle "playchess.com"]
[Source "ChessBase"]
[SourceQuality "1"]
[TimeControl "40/5400+30:1800+30"]

1. c4 {[%emt 0:00:10]} Nf6 {[%emt 0:00:31]} 2. Nc3 {[%emt 0:00:15]} c5 {[%emt 0:00:26]} 3. Nf3 {[%emt 0:00:41]} b6 {[%emt 0:01:07]} 4. e4 {[%emt 0:00:59]} d6 {[%emt 0:00:37]} 5. d4 {[%emt 0:00:07]} cxd4 {[%emt 0:00:18]} 6. Nxd4 {[%emt 0:00:06]} Bb7 {[%emt 0:00:44]} 7. f3 {[%emt 0:00:06]} a6 {[%emt 0:00:53]} 8. Be3 {[%emt 0:00:09]} e6 {[%emt 0:00:36]} 9. Qd2 {[%emt 0:00:23]} Be7 {[%emt 0:01:26]} 10. O-O-O {[%emt 0:00:46]} O-O {[%emt 0:04:30]} 11. g4 {[%emt 0:02:00]} Qc7 {[%emt 0:02:04]} 12. g5 {[%emt 0:00:25]} Nfd7 {[%emt 0:01:03]} 13. Kb1 {[%emt 0:00:35]} Nc6 {[%emt 0:01:36]} 14. Rc1 {[%emt 0:03:27]} Nxd4 {[%emt 0:03:34]} 15. Qxd4 {[%emt 0:01:23]} Rfc8 {[%emt 0:03:55]} 16. Be2 {[%emt 0:07:03]} Qc5 {[%emt 0:03:32]} 17. Qd2 {[%emt 0:01:10]} Qa5 {[%emt 0:02:23]} 18. Rhg1 {[%emt 0:09:15]} Bf8 {[%emt 0:01:52]} 19. h4 {[%emt 0:02:17]} b5 {[%emt 0:02:32]} 20. h5 {[%emt 0:06:07]} Ne5 {[%emt 0:08:54]} 21. Bd4 {[%emt 0:07:05]} Nxc4 {[%emt 0:04:15]} 22. Bxc4 {[%emt 0:00:09]} Rxc4 {[%emt 0:01:16]} 23. g6 {[%emt 0:01:07]} e5 {[%emt 0:06:22]} 24. Be3 {[%emt 0:03:35]} b4 {[%emt 0:03:24]} 25. Ne2 {[%emt 0:02:19]} Rxc1+ {[%emt 0:03:03]} 26. Nxc1 {[%emt 0:00:07]} d5 {[%emt 0:02:36]} 27. gxf7+ {[%emt 0:03:07]} Kxf7 {[%emt 0:02:25]} 28. Rg5 {[%emt 0:02:26]} Re8 {[%emt 0:02:28]} 29. f4 {[%emt 0:06:08]} exf4 {[%emt 0:06:41]} 30. Bxf4 {[%emt 0:03:45]} Rxe4 {[%emt 0:02:11]} 31. Be5 {[%emt 0:02:41]} Qc5 {[%emt 0:06:27]} 32. Qg2 {[%emt 0:07:09]} Re1 {[%emt 0:04:15]} 33. Rxg7+ {[%emt 0:00:21]} Bxg7 {[%emt 0:03:05]} 34. Qxg7+ {[%emt 0:00:10]} Ke8 {[%emt 0:00:37]} 35. Qg8+ {[%emt 0:05:23]} Qf8 {[%emt 0:04:02]} 36. Qxh7 {[%emt 0:06:10]} Rxe5 {[%emt 0:01:57]} 37. Qxb7 {[%emt 0:00:07]} Qf5+ {[%emt 0:01:30]} 38. Ka1 {[%emt 0:00:00]} Qc2 {[%emt 0:00:56]} 39. Qb8+ {[%emt 0:01:18]} Kd7 {[%emt 0:03:39]} 40. Qa7+ {[%emt 0:01:02]} Ke8 {[%emt 0:03:23]} 41. Qb8+ {[%emt 0:31:31]} Kf7 {[%emt 0:30:49]} 42. Qa7+ {[%emt 0:00:25]} Kg8 {[%emt 0:00:00]} 43. Qg1+ {[%emt 0:00:00]} Kh7 {[%emt 0:00:00]} 44. Qa7+ {[%emt 0:00:00]} Kh6 {[%emt 0:00:00]} 45. Qxa6+ {[%emt 0:00:00]} Kxh5 {[%emt 0:00:00]} 46. Qf1 {[%emt 0:00:00]} Qd2 {[%emt 0:00:00]} 47. Kb1 {[%emt 0:00:00]} Re1 {[%emt 0:00:00]} 48. Qf5+ {[%emt 0:00:00]} Kh4 {[%emt 0:00:00]} 49. Qf6+ {[%emt 0:00:00]} Kg3 {[%emt 0:00:00]} 50. Qg6+ {[%emt 0:00:00]} Kh2 {[%emt 0:00:00]} 51. Qh7+ {[%emt 0:00:00]} Kg1 {[%emt 0:00:00]} 52. Qg7+ {[%emt 0:00:00]} Kf1 {[%emt 0:00:00]} 53. Qf7+ {[%emt 0:00:00]} Kg2 {[%emt 0:00:00]} 54. Qg6+ {[%emt 0:00:00]} Kf3 {[%emt 0:00:00]} 55. Qf5+ {[%emt 0:00:00]} Kg3 {[%emt 0:00:00]} 56. Qg6+ {[%emt 0:00:00]} Kh4 {[%emt 0:00:00]} 57. Qf6+ {[%emt 0:00:00]} Kg4 {[%emt 0:00:00]} 58. Qg7+ {[%emt 0:00:00]} 1/2-1/2

[Event "Olomouc Chess Summer IM-B 2024"]
[Site "Olomouc"]
[Date "2024.08.15"]
[Round "7.12"]
[White "Delgerdalai, Bayarjavkhlan"]
[Black "Biolek, Richard Jr."]
[Result "0-1"]
[ECO "D85"]
[WhiteElo "2278"]
[BlackElo "2417"]
[Annotator "ChessBase"]
[PlyCount "154"]
[EventDate "2024.08.10"]
[EventType "tourn"]
[EventCountry "CZE"]
[SourceTitle "playchess.com"]
[Source "ChessBase"]
[SourceQuality "1"]
[TimeControl "40/5400+30:1800+30"]

1. d4 {[%emt 0:00:06]} Nf6 {[%emt 0:00:37]} 2. c4 {[%emt 0:00:08]} g6 {[%emt 0:03:28]} 3. Nc3 {[%emt 0:00:09]} d5 {[%emt 0:00:06]} 4. cxd5 {[%emt 0:00:27]} Nxd5 {[%emt 0:00:03]} 5. e4 {[%emt 0:00:11]} Nxc3 {[%emt 0:00:03]} 6. bxc3 {[%emt 0:00:07]} Bg7 {[%emt 0:00:04]} 7. Qa4+ {[%emt 0:04:05]} Nd7 {[%emt 0:01:43]} 8. Nf3 {[%emt 0:04:14]} O-O {[%emt 0:01:12]} 9. Qa3 {[%emt 0:01:38]} b6 {[%emt 0:07:34]} 10. Be2 {[%emt 0:01:11]} Bb7 {[%emt 0:00:00]} 11. e5 {[%emt 0:00:08]} e6 {[%emt 0:03:00]} 12. Bg5 {[%emt 0:12:19]} Qc8 {[%emt 0:01:31]} 13. O-O {[%emt 0:04:56]} c5 {[%emt 0:02:43]} 14. Rfe1 {[%emt 0:03:48]} Qc6 {[%emt 0:08:01]} 15. Qb3 {[%emt 0:05:18]} a6 {[%emt 0:01:12]} 16. a4 {[%emt 0:05:40]} Rfc8 {[%emt 0:02:09]} 17. Rac1 {[%emt 0:02:41]} Rab8 {[%emt 0:07:04]} 18. h3 {[%emt 0:10:42]} c4 {[%emt 0:03:28]} 19. Qa3 {[%emt 0:18:27]} b5 {[%emt 0:05:02]} 20. a5 {[%emt 0:01:15]} Re8 {[%emt 0:00:20]} 21. Be7 {[%emt 0:01:25]} f6 {[%emt 0:08:24]} 22. exf6 {[%emt 0:02:06]} Nxf6 {[%emt 0:00:51]} 23. Bd6 {[%emt 0:04:50]} Bf8 {[%emt 0:18:06]} 24. Bxf8 {[%emt 0:01:32]} Rxf8 {[%emt 0:00:03]} 25. Bf1 {[%emt 0:00:47]} Nd5 {[%emt 0:00:39]} 26. Ne5 {[%emt 0:04:23]} Qc7 {[%emt 0:01:04]} 27. Rc2 {[%emt 0:04:18]} Rbe8 {[%emt 0:02:02]} 28. g3 {[%emt 0:01:09]} Nf6 {[%emt 0:03:27]} 29. Bg2 {[%emt 0:02:34]} Bxg2 {[%emt 0:00:38]} 30. Kxg2 {[%emt 0:00:02]} Nd5 {[%emt 0:00:10]} 31. Rce2 {[%emt 0:02:45]} Kg7 {[%emt 0:00:21]} 32. Kg1 {[%emt 0:01:55]} h5 {[%emt 0:00:51]} 33. h4 {[%emt 0:00:19]} Rf5 {[%emt 0:02:22]} 34. f4 {[%emt 0:00:40]} b4 {[%emt 0:16:02]} 35. cxb4 {[%emt 0:00:12]} c3 {[%emt 0:00:02]} 36. Qa4 {[%emt 0:00:57]} Rc8 {[%emt 0:00:46]} 37. Kh2 {[%emt 0:01:00]} Qb7 {[%emt 0:01:22]} 38. Nd3 {[%emt 0:00:28]} g5 {[%emt 0:02:12]} 39. hxg5 {[%emt 0:00:33]} h4 {[%emt 0:00:04]} 40. g4 {[%emt 0:00:32]} Rxf4 {[%emt 0:00:44]} 41. Rxe6 {[%emt 0:27:03]} Qf7 {[%emt 0:15:44]} 42. g6 {[%emt 0:03:52]} Rf2+ {[%emt 0:00:09]} 43. Kg1 {[%emt 0:00:03]} Rf1+ {[%emt 0:00:05]} 44. Rxf1 {[%emt 0:00:06]} Qxe6 {[%emt 0:00:01]} 45. Ne5 {[%emt 0:00:35]} c2 {[%emt 0:00:03]} 46. Qa3 {[%emt 0:01:16]} Nc3 {[%emt 0:01:39]} 47. Kh2 {[%emt 0:00:33]} Ne4 {[%emt 0:14:05]} 48. Qe3 {[%emt 0:00:25]} c1=Q {[%emt 0:00:47]} 49. Rxc1 {[%emt 0:00:13]} Qa2+ {[%emt 0:00:03]} 50. Kh3 {[%emt 0:00:49]} Qf2 {[%emt 0:01:58]} 51. Qxf2 {[%emt 0:00:31]} Nxf2+ {[%emt 0:00:04]} 52. Kg2 {[%emt 0:00:03]} Rxc1 {[%emt 0:00:13]} 53. Kxf2 {[%emt 0:00:03]} Rc2+ {[%emt 0:00:42]} 54. Kg1 {[%emt 0:00:50]} h3 {[%emt 0:00:49]} 55. g5 {[%emt 0:00:38]} Rd2 {[%emt 0:00:40]} 56. Kh1 {[%emt 0:00:57]} Rxd4 {[%emt 0:00:11]} 57. Nc6 {[%emt 0:00:32]} Rd6 {[%emt 0:01:31]} 58. Ne5 {[%emt 0:00:32]} Rd2 {[%emt 0:00:22]} 59. Kg1 {[%emt 0:00:28]} Rg2+ {[%emt 0:00:47]} 60. Kh1 {[%emt 0:00:08]} Rd2 {[%emt 0:00:26]} 61. Kg1 {[%emt 0:00:14]} Rg2+ {[%emt 0:00:27]} 62. Kh1 {[%emt 0:00:14]} Rxg5 {[%emt 0:00:06]} 63. Nd3 {[%emt 0:00:32]} Rxg6 {[%emt 0:00:31]} 64. Nc5 {[%emt 0:01:09]} Kf7 {[%emt 0:00:46]} 65. Kh2 {[%emt 0:00:35]} Ke7 {[%emt 0:00:38]} 66. Kxh3 {[%emt 0:00:20]} Kd8 {[%emt 0:00:26]} 67. Kh4 {[%emt 0:00:49]} Kc7 {[%emt 0:00:07]} 68. Kh5 {[%emt 0:00:03]} Rc6 {[%emt 0:00:26]} 69. Kg5 {[%emt 0:00:54]} Kd6 {[%emt 0:00:01]} 70. Kf4 {[%emt 0:00:15]} Kd5 {[%emt 0:00:02]} 71. Ke3 {[%emt 0:00:39]} Kc4 {[%emt 0:00:09]} 72. Kd2 {[%emt 0:00:41]} Kxb4 {[%emt 0:00:15]} 73. Nd3+ {[%emt 0:00:28]} Kxa5 {[%emt 0:00:04]} 74. Ne1 {[%emt 0:00:23]} Ka4 {[%emt 0:00:27]} 75. Nc2 {[%emt 0:00:04]} Rc8 {[%emt 0:00:04]} 76. Kd3 {[%emt 0:00:26]} Kb3 {[%emt 0:00:10]} 77. Nd4+ {[%emt 0:00:04]} Kb2 {[%emt 0:00:06]} 0-1

[Event "Olomouc Chess Summer IM-B 2024"]
[Site "Olomouc"]
[Date "2024.08.15"]
[Round "7.13"]
[White "Leitgeb, Julian"]
[Black "Schernthaner, David"]
[Result "1/2-1/2"]
[ECO "D87"]
[WhiteElo "2313"]
[BlackElo "2331"]
[Annotator "RC"]
[PlyCount "52"]
[EventDate "2024.08.10"]
[EventType "tourn"]
[EventCountry "CZE"]
[SourceTitle "playchess.com"]
[Source "ChessBase"]
[SourceQuality "1"]
[TimeControl "40/5400+30:1800+30"]

1. d4 {[%emt 0:01:34]} Nf6 {[%emt 0:00:22]} 2. c4 {[%emt 0:00:04]} g6 {[%emt 0:00:28]} 3. Nc3 {[%emt 0:00:22]} d5 {[%emt 0:00:07]} 4. cxd5 {[%emt 0:00:05]} Nxd5 {[%emt 0:00:05]} 5. e4 {[%emt 0:00:07]} Nxc3 {[%emt 0:00:04]} 6. bxc3 {[%emt 0:00:08]} Bg7 {[%emt 0:00:06]} 7. Bc4 {[%emt 0:00:58]} c5 {[%emt 0:00:58]} 8. Ne2 {[%emt 0:00:18]} O-O {[%emt 0:00:14]} 9. O-O {[%emt 0:00:05]} Nc6 {[%emt 0:01:16]} 10. Be3 {[%emt 0:00:13]} b6 {[%emt 0:02:01]} 11. dxc5 {[%emt 0:00:56]} Qc7 {[%emt 0:09:32]} 12. Nd4 {[%emt 0:01:29]} Ne5 {[%emt 0:01:14]} 13. Nb5 {[%emt 0:00:39]} Qb8 {[%emt 0:00:54]} 14. Bd5 {[%emt 0:00:11]} Ng4 {[%emt 0:00:29]} 15. g3 {[%emt 0:00:29]} Nxe3 {[%emt 0:00:20]} 16. fxe3 {[%emt 0:00:09]} a6 {[%emt 0:00:57]} 17. Bxa8 {[%emt 0:05:18]} axb5 {[%emt 0:01:09]} 18. Bd5 {[%emt 0:00:45]} Qc7 {[%emt 0:02:34]} 19. cxb6 {[%emt 0:00:52]} Qxb6 {[%emt 0:00:05]} 20. Qe2 {[%emt 0:00:36]} e6 {[%emt 0:00:44]} 21. Bb3 {[%emt 0:00:10]} b4 {[%emt 0:01:02]} 22. a4 {[%emt 0:00:46]} Qc6 {[%emt 0:01:58]} 23. Qc4 {[%emt 0:00:19]} Qb6 {[%emt 0:00:19]} 24. Qe2 {[%emt 0:00:39]} Qc6 {[%emt 0:00:23]} 25. Qc4 {[%emt 0:00:41]} Qb6 {[%emt 0:00:08]} 26. Qe2 {[%emt 0:00:45]} Qc6 {[%emt 0:00:10]} 1/2-1/2

[Event "Olomouc Chess Summer IM-B 2024"]
[Site "Olomouc"]
[Date "2024.08.15"]
[Round "7.14"]
[White "Ihnat, Marek"]
[Black "Zavurka, Roman"]
[Result "0-1"]
[ECO "C41"]
[WhiteElo "2097"]
[BlackElo "2191"]
[Annotator "RC"]
[PlyCount "90"]
[EventDate "2024.08.10"]
[EventType "tourn"]
[EventCountry "CZE"]
[SourceTitle "playchess.com"]
[Source "ChessBase"]
[SourceQuality "1"]
[TimeControl "40/5400+30:1800+30"]

1. e4 {[%emt 0:00:05]} d6 {[%emt 0:00:20]} 2. d4 {[%emt 0:00:10]} Nf6 {[%emt 0:00:22]} 3. Nc3 {[%emt 0:00:07]} e5 {[%emt 0:00:09]} 4. Nf3 {[%emt 0:00:08]} exd4 {[%emt 0:00:11]} 5. Nxd4 {[%emt 0:00:09]} Be7 {[%emt 0:00:10]} 6. Be2 {[%emt 0:00:06]} O-O {[%emt 0:00:17]} 7. O-O {[%emt 0:00:08]} Re8 {[%emt 0:00:15]} 8. Re1 {[%emt 0:10:47]} Bf8 {[%emt 0:02:06]} 9. Bd3 {[%emt 0:16:20]} c5 {[%emt 0:01:34]} 10. Nde2 {[%emt 0:02:50]} h6 {[%emt 0:01:52]} 11. h3 {[%emt 0:02:24]} Nc6 {[%emt 0:00:31]} 12. Nf4 {[%emt 0:02:03]} a6 {[%emt 0:02:21]} 13. Nfd5 {[%emt 0:03:51]} Be6 {[%emt 0:01:47]} 14. a4 {[%emt 0:06:54]} Bxd5 {[%emt 0:05:05]} 15. Nxd5 {[%emt 0:00:21]} Nxd5 {[%emt 0:03:41]} 16. exd5 {[%emt 0:00:02]} Rxe1+ {[%emt 0:15:52]} 17. Qxe1 {[%emt 0:00:58]} Nb4 {[%emt 0:01:48]} 18. Be4 {[%emt 0:17:05]} Qe7 {[%emt 0:06:40]} 19. Bd2 {[%emt 0:00:17]} Re8 {[%emt 0:04:38]} 20. f3 {[%emt 0:01:06]} a5 {[%emt 0:03:45]} 21. c3 {[%emt 0:01:11]} Na6 {[%emt 0:00:14]} 22. Qg3 {[%emt 0:02:36]} c4 {[%emt 0:06:33]} 23. Bxh6 {[%emt 0:08:55]} Nc5 {[%emt 0:04:13]} 24. Bd2 {[%emt 0:11:23]} Qd7 {[%emt 0:07:48]} 25. Re1 {[%emt 0:04:45]} Nxe4 {[%emt 0:01:27]} 26. Rxe4 {[%emt 0:00:39]} Qxa4 {[%emt 0:00:55]} 27. Rxe8 {[%emt 0:00:38]} Qxe8 {[%emt 0:00:08]} 28. Bf4 {[%emt 0:01:04]} Qb5 {[%emt 0:03:17]} 29. Bxd6 {[%emt 0:00:44]} Qb6+ {[%emt 0:00:11]} 30. Qf2 {[%emt 0:03:27]} Qxf2+ {[%emt 0:03:17]} 31. Kxf2 {[%emt 0:00:02]} Bxd6 {[%emt 0:00:13]} 32. Ke3 {[%emt 0:00:37]} b5 {[%emt 0:01:02]} 33. Kd4 {[%emt 0:00:20]} Kf8 {[%emt 0:00:54]} 34. h4 {[%emt 0:00:31]} Ke7 {[%emt 0:00:59]} 35. g4 {[%emt 0:00:23]} Kf6 {[%emt 0:01:43]} 36. Ke4 {[%emt 0:00:58]} Bc5 {[%emt 0:01:54]} 37. f4 {[%emt 0:01:23]} b4 {[%emt 0:00:54]} 38. cxb4 {[%emt 0:00:46]} axb4 {[%emt 0:00:08]} 39. h5 {[%emt 0:02:39]} c3 {[%emt 0:01:22]} 40. g5+ {[%emt 0:00:50]} Ke7 {[%emt 0:00:14]} 41. bxc3 {[%emt 0:01:47]} bxc3 {[%emt 0:00:05]} 42. Kd3 {[%emt 0:04:53]} Bd4 {[%emt 0:08:50]} 43. f5 {[%emt 0:01:19]} Be5 {[%emt 0:04:26]} 44. g6 {[%emt 0:10:01]} fxg6 {[%emt 0:03:04]} 45. fxg6 {[%emt 0:01:47]} Kd6 {[%emt 0:23:57]} 0-1